bitfinex/quotes_ETHUSD_20260305
["timestamp","ask_amount","ask_price","bid_price","bid_amount"]
[1772671259733,0.47437094,2129.6,2129.2,1.187]
[1772671260849,0.47437094,2129.4,2128.9,1.187]
[1772671261053,0.47437094,2129.4,2128.8,1.187]
[1772671261639,0.47437094,2129.4,2128.9,0.0011]
[1772671261924,0.001,2129.2,2128.9,0.0011]
[1772671262354,0.001,2129.2,2128.9,0.46595179]
[1772671262765,0.001,2129.2,2129.0,1.17426021]
[1772671265150,0.47537094,2129.2,2128.6,0.0011]
[1772671265345,2.73179908,2129.1,2128.4,0.46595179]
[1772671265541,2.23766079,2129.5,2128.4,0.46595179]
[1772671265542,0.001,2129.9,2129.1,0.46485179]
[1772671265733,0.001,2129.9,2129.3,0.46485179]
[1772671265936,0.001,2129.9,2129.2,1.184]
[1772671265937,0.47437094,2130.5,2129.4,0.46485179]
[1772671266638,0.47437094,2130.5,2129.6,0.46485179]
[1772671267052,1.17331076,2130.8,2129.8,0.46485179]
[1772671267053,0.47437094,2130.8,2129.8,0.46485179]
[1772671267256,0.47437094,2130.8,2130.0,0.46485179]
[1772671269270,0.47437094,2130.8,2130.1,1.6385056]
[1772671269974,0.47437094,2130.8,2130.1,1.31450672]
[1772671270170,0.47437094,2130.8,2130.2,0.46485179]
[1772671270869,0.47437094,2130.8,2130.1,1.31450672]
[1772671271168,0.47437094,2130.6,2130.1,1.31450672]
[1772671271467,0.47437094,2130.6,2130.1,2.50550672]
[1772671272171,0.47437094,2130.6,2129.5,0.46485179]
[1772671272355,0.47437094,2130.6,2130.0,0.00449663]
[1772671273373,0.47437094,2130.4,2130.0,0.00449663]
[1772671273762,0.47437094,2130.4,2129.4,1.17401302]
[1772671274272,0.47437094,2130.4,2129.4,1.63886481]
[1772671274654,0.47437094,2130.4,2129.4,0.46485179]
[1772671274859,0.47437094,2130.4,2129.3,1.17405626]
[1772671275278,0.47437094,2130.2,2129.3,1.17405626]
[1772671275656,0.47437094,2130.2,2129.2,1.17522255]
[1772671276055,0.47437094,2130.2,2129.2,1.64007434]
[1772671277668,0.47437094,2130.0,2129.2,1.64007434]
[1772671279780,0.47134616,2129.8,2129.2,0.0011]
[1772671280082,0.47134616,2129.8,2129.2,1.17523864]
[1772671280267,0.47134616,2129.8,2129.2,0.0011]
[1772671280467,0.47134616,2129.7,2129.1,0.09881311]
[1772671280956,0.47134616,2129.7,2129.1,1.27301232]
[1772671282083,1.64526325,2129.7,2129.1,1.27301232]
[1772671282275,0.47134616,2129.7,2129.1,1.75897951]
[1772671282479,4.69494357,2130.0,2129.2,0.48596719]
[1772671282480,1.64508527,2130.0,2129.2,0.48596719]
[1772671284284,0.47134616,2129.9,2129.2,1.17410961]
[1772671284464,0.47134616,2129.9,2129.1,2.36916246]
[1772671285290,0.47134616,2129.9,2129.1,1.17416246]
[1772671285486,0.47134616,2129.9,2129.1,1.66012965]
[1772671285664,1.17373911,2130.0,2129.2,0.48596719]
[1772671286184,1.17373911,2130.0,2129.3,1.66006196]
[1772671286491,0.47134616,2130.1,2129.4,0.48596719]
[1772671287067,1.173637,2130.2,2129.4,0.48596719]
[1772671288087,1.173637,2130.2,2129.4,0.48706719]
[1772671288267,1.173637,2130.2,2129.5,1.6583421]
[1772671288463,0.49098356,2129.8,2129.4,0.0011]
[1772671288664,0.001,2129.8,2129.5,0.4843576]
[1772671288995,0.001,2130.4,2129.5,0.4843576]
[1772671289683,0.001,2130.4,2129.4,3.40602855]
[1772671289684,0.001,2130.4,2129.7,0.4843576]
[1772671289884,0.001,2130.4,2129.9,0.4843576]
[1772671290272,0.001,2130.4,2130.1,0.4843576]
[1772671292880,0.001,2130.4,2130.2,1.65795632]
[1772671293081,0.001,2130.4,2130.3,1.195]
[1772671293375,0.001,2130.4,2130.3,1.6793576]
[1772671293975,0.48998356,2131.1,2130.3,1.195]
[1772671294180,1.66300249,2131.3,2130.4,0.4843576]
[1772671294989,1.66300249,2131.3,2130.5,1.65779106]
[1772671295186,1.66300249,2131.3,2130.6,0.4843576]
[1772671295391,1.66290845,2131.5,2130.6,0.4843576]
[1772671295786,0.48998356,2131.5,2130.6,0.4843576]
[1772671295989,0.48998356,2131.8,2130.7,0.4843576]
[1772671296189,0.48998356,2132.3,2130.9,0.4843576]
[1772671296508,0.48998356,2132.3,2131.1,0.4843576]
[1772671297003,1.66244984,2132.3,2131.3,0.4843576]
[1772671297200,0.48998356,2132.3,2131.3,0.4843576]
[1772671297400,0.48998356,2132.3,2131.5,0.4843576]
[1772671297582,0.48998356,2132.3,2131.6,1.6803576]
[1772671297783,1.66242853,2132.3,2131.6,1.6803576]
[1772671298181,0.48998356,2132.6,2131.7,0.4843576]
[1772671298375,2.73855297,2132.9,2131.7,0.4843576]
[1772671298376,4.40069041,2132.9,2131.7,0.4843576]
[1772671299185,0.48998356,2132.9,2131.9,0.4843576]
[1772671299401,1.17208491,2133.0,2131.9,0.4843576]
[1772671299807,0.48998356,2132.9,2132.0,1.196]
[1772671300410,0.48998356,2132.9,2132.1,1.196]
[1772671300585,0.48998356,2132.9,2132.2,0.4843576]
[1772671301203,1.6621516,2132.8,2132.0,1.17260787]
[1772671301403,0.48998356,2132.7,2131.9,0.04074431]
[1772671301603,0.48998356,2132.7,2131.6,1.17279717]
[1772671301807,0.48998356,2132.7,2131.6,2.40841632]
[1772671301984,0.49098356,2132.7,2131.6,2.40841632]
[1772671302803,0.49098356,2132.7,2131.7,0.4843576]
[1772671303202,1.17227797,2132.6,2131.8,1.17271789]
[1772671303404,1.17325915,2132.7,2131.9,0.4843576]
[1772671303718,1.66324271,2132.7,2131.9,0.4843576]
[1772671303915,1.66324271,2132.7,2131.9,1.6793576]
[1772671305298,1.66324271,2132.7,2132.0,1.17260787]
[1772671305596,0.001,2132.7,2132.1,0.4843576]
[1772671306714,1.17203322,2133.1,2132.0,1.17260787]
[1772671307039,1.10157661,2134.0,2132.3,0.4843576]
[1772671307317,0.48998356,2133.9,2132.9,0.4843576]
[1772671307517,0.48998356,2133.7,2132.9,1.195]
[1772671307726,0.48998356,2133.7,2132.8,1.195]
[1772671308084,0.48998356,2133.7,2132.9,0.02545744]
[1772671308316,2.67632729,2133.8,2132.9,0.02545744]
[1772671308615,1.78311236,2134.0,2132.9,0.02545744]
[1772671308616,1.78311236,2134.0,2132.9,0.4843576]
[1772671308816,0.49799955,2133.9,2133.0,1.19951478]
[1772671308983,0.49799955,2133.9,2133.1,0.00451457]
[1772671309187,0.49799955,2133.8,2133.1,0.00451457]
[1772671309405,1.17167361,2133.7,2133.1,0.00451457]
[1772671309639,1.17166126,2133.8,2133.1,0.47097398]
[1772671310192,1.17159729,2133.9,2133.1,0.47097398]
[1772671310712,0.49799955,2133.9,2133.1,1.19951457]
[1772671310890,0.49799955,2133.9,2133.1,0.00451457]
[1772671311424,0.49799955,2133.7,2133.1,0.00451457]
[1772671311623,1.1716187,2133.8,2133.2,0.46645941]
[1772671311798,1.66949237,2134.1,2133.2,0.46645941]
[1772671311999,1.66949237,2134.1,2133.2,0.02028379]
[1772671312000,0.49799955,2134.0,2133.2,0.02028379]
[1772671312991,4.85295603,2134.2,2133.3,0.46645941]
[1772671312992,1.33867967,2134.2,2133.3,0.46645941]
[1772671313291,3.23655252,2134.6,2133.4,1.63829779]
[1772671313292,1.66923403,2134.5,2133.4,1.63829779]
[1772671313526,1.66923403,2134.5,2133.5,0.46645941]
[1772671314297,1.17123448,2134.5,2133.5,0.46645941]
[1772671314921,1.66923403,2134.5,2133.6,1.194]
[1772671315429,1.66923403,2134.5,2133.7,1.17167361]
[1772671316128,0.002,2134.3,2133.7,1.17167361]
[1772671316338,0.002,2134.3,2133.7,1.63813302]
[1772671316626,0.49799955,2134.2,2133.5,0.016194]
[1772671317603,0.49799955,2134.0,2133.5,1.18797425]
[1772671317802,0.49799955,2134.0,2133.5,0.016194]
[1772671318504,0.49799955,2134.0,2133.1,1.17198026]
[1772671318705,0.49799955,2134.0,2133.1,2.36498026]
[1772671319396,0.49799955,2134.0,2133.1,1.17198026]
[1772671319596,1.66956335,2133.9,2133.1,2.36498026]
[1772671319800,0.49799955,2133.8,2133.1,1.17198026]
[1772671320003,0.49799955,2133.8,2133.0,2.36503071]
[1772671320728,0.49799955,2133.8,2132.9,0.01592718]
[1772671321124,0.49799955,2133.8,2132.5,1.17229828]
[1772671321553,0.49799955,2133.6,2132.5,1.17229828]
[1772671321866,0.49799955,2133.5,2132.3,1.63888157]
[1772671322037,0.49799955,2133.5,2132.4,0.46645941]
[1772671323561,1.17167361,2133.7,2132.6,0.46645941]
[1772671323730,1.66967316,2133.7,2132.6,0.46645941]
[1772671325245,0.49799955,2133.6,2132.6,0.46645941]
[1772671325559,0.49799955,2133.6,2132.6,1.189]
[1772671326055,0.49799955,2133.4,2132.5,2.36133294]
[1772671326258,0.49799955,2133.4,2132.5,1.17233294]
[1772671326445,0.49799955,2133.4,2132.0,4.69000353]
[1772671326446,0.49799955,2133.4,2131.7,2.20478659]
[1772671326653,0.49799955,2133.4,2131.9,0.46645941]
[1772671326845,1.17178345,2133.5,2131.9,0.46645941]
[1772671327161,1.17178345,2133.5,2132.0,0.46645941]
[1772671327651,0.49799955,2133.4,2132.2,0.46645941]
[1772671327850,1.17189331,2133.3,2132.4,0.46645941]
[1772671328949,4.68757324,2133.6,2132.4,0.46645941]
[1772671328950,1.17172853,2133.6,2132.4,0.46645941]
[1772671329248,0.49799955,2133.5,2132.5,1.189]
[1772671329827,0.49799955,2133.5,2132.6,0.001]
[1772671330027,0.49799955,2133.5,2132.6,1.17327797]
[1772671330028,1.17183838,2133.4,2132.6,1.17327797]
[1772671330237,1.66983793,2133.4,2132.6,1.17327797]
[1772671331432,1.66983793,2133.4,2132.6,0.001]
[1772671331645,0.49799955,2133.3,2132.4,0.001]
[1772671332256,0.49799955,2133.1,2132.4,0.001]
[1772671334168,0.49799955,2132.9,2132.4,0.001]
[1772671335761,0.49799955,2132.9,2132.2,0.01365081]
[1772671335934,0.49799955,2132.8,2131.6,1.19]
[1772671336134,0.49799955,2132.6,2131.5,1.65345941]
[1772671336355,0.49799955,2132.6,2131.3,1.17294812]
[1772671336557,0.49799955,2132.6,2131.2,5.47057259]
[1772671336761,0.49799955,2132.6,2131.3,0.46645941]
[1772671337665,1.172223,2132.7,2131.3,0.46645941]
[1772671337865,1.67022255,2132.7,2131.3,0.46645941]
[1772671338061,1.67022255,2132.7,2131.4,1.187]
[1772671338258,1.17233294,2132.5,2131.6,1.63928733]
[1772671338562,1.17233294,2132.5,2131.6,0.46645941]
[1772671338867,0.47088735,2132.4,2131.5,1.187]
[1772671339250,0.47088735,2132.4,2131.6,0.46879338]
[1772671339564,1.17233294,2132.5,2131.6,0.46879338]
[1772671339753,0.47088735,2132.4,2131.6,0.46879338]
[1772671339952,0.47088735,2132.4,2131.4,1.17291174]
[1772671341159,1.1724429,2132.3,2131.5,0.46879338]
[1772671342361,1.64333025,2132.3,2131.4,1.17291174]
[1772671342555,0.47088735,2132.2,2131.4,1.188]
[1772671343164,1.17255288,2132.1,2131.4,2.3609215]
[1772671343679,0.47088735,2131.8,2130.6,1.65789338]
[1772671343837,0.47088735,2131.8,2130.7,4.0]
[1772671344263,0.47088735,2131.8,2130.6,1.65789338]
[1772671344447,0.47088735,2131.8,2130.6,2.83127034]
[1772671344652,0.47088735,2131.8,2130.7,0.46879338]
[1772671344945,0.47088735,2131.8,2130.8,1.188]
[1772671345159,1.64366025,2131.7,2131.5,0.001]
[1772671345365,0.47088735,2131.6,2130.8,1.17325245]
[1772671345951,0.47088735,2131.6,2131.3,0.001]
[1772671346272,1.1727729,2131.7,2131.3,0.001]
[1772671347221,4.69109161,2131.8,2131.3,0.001]
[1772671347344,1.17260787,2132.0,2131.3,0.48272902]
[1772671347545,1.17249788,2132.2,2131.3,0.48272902]
[1772671348551,0.002,2132.3,2131.3,0.48272902]
[1772671348757,0.002,2132.5,2131.4,0.48172902]
[1772671349157,0.002,2132.5,2131.6,0.48172902]
[1772671350963,0.002,2132.5,2131.7,1.189]
[1772671351485,0.002,2132.5,2131.7,1.1727729]
[1772671351682,0.47560029,2132.5,2131.7,1.1727729]
[1772671352072,0.47560029,2132.5,2131.7,1.65450192]
[1772671352073,0.002,2132.5,2131.7,1.65450192]
[1772671352383,0.002,2132.5,2131.8,0.48172902]
[1772671353662,0.002,2132.5,2131.9,1.17266288]
[1772671354061,0.002,2132.5,2131.9,1.6543919]
[1772671354886,0.47560029,2132.5,2131.7,4.69087156]
[1772671355059,0.47560029,2132.5,2131.7,5.87987156]
[1772671355380,0.47560029,2132.5,2131.7,1.189]
[1772671355885,0.47360029,2132.3,2131.5,1.189]
[1772671357894,0.002,2132.5,2131.7,1.65450192]
[1772671358569,0.002,2132.5,2131.7,0.48172902]
[1772671358769,0.47560029,2132.5,2131.6,1.17278932]
[1772671358964,0.47560029,2132.5,2131.5,1.17285965]
[1772671359166,0.002,2132.5,2131.6,0.48172902]
[1772671360089,0.002,2132.5,2131.8,0.48172902]
[1772671360767,4.68834979,2133.0,2131.8,0.48172902]
[1772671360967,4.68834979,2133.0,2131.9,0.48272902]
[1772671361184,5.16195008,2133.0,2132.0,1.19]
[1772671361383,0.002,2132.3,2132.0,1.19]
[1772671361589,1.64565842,2133.0,2132.0,1.19]
[1772671361795,0.47360029,2132.9,2132.0,1.19]
[1772671362014,1.6454141,2133.5,2132.3,0.48172902]
[1772671362468,0.47360029,2133.4,2132.2,1.17249788]
[1772671362668,0.47360029,2133.4,2132.2,2.36249788]
[1772671363269,0.47360029,2133.4,2132.2,1.17249788]
[1772671363471,0.47360029,2133.2,2132.0,1.17260445]
[1772671364204,0.47360029,2133.0,2132.0,1.65433347]
[1772671365477,0.47360029,2133.0,2132.0,2.84433347]
[1772671366391,1.64571337,2132.9,2132.0,2.36260445]
[1772671366699,0.47360029,2132.8,2132.0,2.36260445]
[1772671366903,0.47360029,2132.8,2132.0,1.17260445]
[1772671367784,0.47360029,2132.8,2131.9,2.36361972]
[1772671368500,1.172223,2132.7,2131.9,2.36361972]
[1772671368695,1.17214003,2132.9,2132.0,0.45166752]
[1772671369210,1.17214003,2132.9,2131.9,1.17361972]
[1772671369211,0.46821967,2132.8,2131.9,1.17361972]
[1772671369412,0.46821967,2132.8,2131.9,0.001]
[1772671369729,0.46821967,2132.8,2131.9,1.17365642]
[1772671370607,1.172223,2132.7,2131.9,1.17365642]
[1772671371508,1.172223,2132.7,2131.9,0.001]
[1772671371509,0.46821967,2132.6,2131.9,0.001]
[1772671372083,0.46821967,2132.6,2131.6,0.001]
[1772671372622,1.17233294,2132.5,2131.6,0.001]
[1772671372804,0.46821967,2132.4,2131.6,0.001]
[1772671374723,1.1724429,2132.3,2131.6,0.001]
[1772671375018,1.64066257,2132.3,2131.6,0.001]
[1772671375319,1.64066257,2132.3,2131.8,0.001]
[1772671377429,1.1724429,2132.3,2131.8,0.001]
[1772671378693,0.46821967,2132.2,2131.8,0.001]
[1772671379005,1.17255288,2132.1,2131.8,0.001]
[1772671380524,0.46821967,2132.4,2131.8,0.001]
[1772671381107,0.46821967,2132.2,2131.4,0.001]
[1772671381805,0.46821967,2132.2,2131.3,0.001]
[1772671383030,0.46821967,2132.1,2131.3,0.001]
[1772671383838,0.46821967,2131.9,2131.3,0.001]
[1772671384039,0.46821967,2131.8,2131.3,0.001]
[1772671385907,1.64099257,2131.7,2131.3,0.001]
[1772671387619,1.1727729,2131.7,2131.0,0.45266752]
[1772671388423,4.69109161,2131.8,2131.1,1.17310309]
[1772671388724,1.17271789,2131.8,2131.2,0.45166752]
[1772671389122,1.17269977,2131.9,2131.5,0.001]
[1772671389428,0.002,2131.6,2131.5,0.001]
[1772671389605,1.17269977,2131.9,2131.5,0.001]
[1772671390110,0.002,2131.8,2131.5,0.001]
[1772671390713,0.47021967,2131.8,2131.3,0.001]
[1772671392927,1.1727729,2131.7,2131.3,0.001]
[1772671394301,1.64099257,2131.7,2131.3,0.001]
[1772671395008,0.46821967,2131.6,2131.3,0.001]
[1772671395606,1.1727729,2131.7,2131.3,0.001]
[1772671397635,1.64099257,2131.7,2131.3,0.001]
[1772671397813,1.1727729,2131.7,2131.3,0.001]
[1772671398214,1.64099257,2131.7,2131.3,0.001]
[1772671398411,0.46821967,2131.5,2130.4,1.17455935]
[1772671398742,0.4756758,2131.3,2130.5,1.17342758]
[1772671399054,1.17303637,2131.3,2130.6,0.45421442]
[1772671399211,1.17296848,2131.4,2130.6,0.45421442]
[1772671401053,2.22880795,2131.6,2130.8,0.45311442]
[1772671401342,4.52128529,2131.8,2130.8,0.45311442]
[1772671401343,3.4035259,2131.8,2130.8,0.45311442]
[1772671402342,3.8792017,2131.8,2130.8,0.45311442]
[1772671402636,3.8792017,2131.8,2130.8,0.45421442]
[1772671403041,0.001,2131.6,2130.8,0.45421442]
[1772671403238,0.001,2131.6,2130.9,1.62632761]
[1772671404341,0.4766758,2131.6,2130.9,1.62632761]
[1772671404718,0.4766758,2131.6,2130.9,0.45311442]
[1772671405731,1.17288294,2131.5,2130.9,1.62629902]
[1772671406719,1.17288294,2131.5,2131.0,0.47698614]
[1772671407154,1.173871,2131.6,2131.0,0.47698614]
[1772671407646,3.40354587,2131.8,2131.0,0.47698614]
[1772671407854,3.40354587,2131.8,2131.2,0.47698614]
[1772671408161,2.71710025,2131.7,2131.0,1.65010027]
[1772671408631,2.71710025,2131.7,2131.0,1.17311413]
[1772671408831,2.71710025,2131.7,2131.0,1.65010027]
[1772671409957,1.17282792,2131.6,2131.0,1.65010027]
[1772671410549,1.17282792,2131.6,2131.0,0.47698614]
[1772671410938,1.17282792,2131.6,2130.9,1.18]
[1772671411257,1.17282792,2131.6,2130.8,0.47808614]
[1772671411258,2.71710025,2131.5,2130.8,1.65135174]
[1772671411953,1.17288519,2131.5,2130.8,1.65135174]
[1772671412266,1.66117749,2131.5,2130.8,1.65135174]
[1772671414277,4.51937254,2131.7,2130.9,0.47698614]
[1772671414422,4.52133286,2131.8,2130.9,0.47698614]
[1772671415434,0.4882923,2131.7,2130.9,0.47698614]
[1772671416253,1.17382792,2131.6,2131.0,1.65014428]
[1772671418557,0.4882923,2131.5,2130.8,1.65134217]
[1772671418934,4.52039526,2131.6,2130.9,0.47698614]
[1772671419136,5.00868756,2131.6,2130.9,0.47698614]
[1772671420455,1.66123027,2131.4,2130.8,0.0011]
[1772671422362,0.4882923,2131.3,2130.8,0.0011]
[1772671422569,0.4882923,2131.2,2130.8,0.0011]
[1772671422771,0.4882923,2131.2,2130.5,0.0011]
[1772671424459,0.4882923,2131.0,2130.5,0.0011]
[1772671425566,0.4882923,2130.8,2130.3,0.0011]
[1772671425766,0.4882923,2130.8,2130.1,0.0011]
[1772671425767,0.4882923,2130.7,2130.1,0.0011]
[1772671426543,0.4882923,2130.5,2130.1,0.0011]
[1772671426868,1.17337839,2130.6,2130.1,0.0011]
[1772671427171,1.66167069,2130.6,2130.1,0.0011]
[1772671428173,0.4882923,2130.5,2130.3,0.0011]
[1772671428640,1.17348854,2130.4,2130.3,0.0011]
[1772671428967,1.66528589,2130.4,2130.3,0.0011]
[1772671429149,0.49179735,2130.3,2130.0,0.0011]
[1772671430452,0.49179735,2130.3,2129.8,0.0011]
[1772671430775,0.49179735,2130.1,2129.8,0.0011]
[1772671432477,1.17359872,2130.2,2129.8,0.0011]
[1772671432855,0.49179735,2130.2,2129.8,0.0011]
[1772671435082,1.17365381,2130.1,2129.8,0.0011]
[1772671437387,0.49179735,2130.0,2129.4,0.0011]
[1772671438801,1.17365381,2130.1,2129.4,0.48164467]
[1772671439153,1.66545116,2130.1,2129.4,0.48164467]
[1772671439553,0.49179735,2130.0,2129.4,0.48164467]
[1772671439754,0.49179735,2130.0,2129.4,1.65567387]
[1772671439992,0.49179735,2130.0,2129.4,0.48164467]
[1772671440291,0.49179735,2130.0,2129.4,1.65568087]
[1772671440954,0.49179735,2130.0,2129.4,0.48164467]
[1772671441152,0.49179735,2130.0,2129.8,0.0011]
[1772671441362,1.17376402,2129.9,2129.8,0.0011]
[1772671441792,1.17375451,2130.0,2129.8,0.0011]
[1772671442092,1.17469546,2130.1,2129.8,0.0011]
[1772671443355,1.17469546,2130.1,2129.5,0.0011]
[1772671443356,0.49179735,2130.0,2129.5,0.0011]
[1772671443557,0.49179735,2130.0,2129.1,1.17526773]
[1772671443558,0.49179735,2129.8,2129.1,0.0011]
[1772671443953,1.17376402,2129.9,2129.1,1.17529429]
[1772671444453,0.49179735,2129.8,2129.1,0.0011]
[1772671444987,0.49179735,2129.8,2129.1,1.17529199]
[1772671445361,0.49179735,2129.8,2129.1,0.0011]
[1772671445563,1.17387425,2129.7,2129.1,0.0011]
[1772671446296,1.6656716,2129.7,2129.1,0.0011]
[1772671447488,0.49179735,2129.6,2129.1,0.0011]
[1772671448767,0.49179735,2130.0,2129.2,0.48054467]
[1772671449603,0.49179735,2129.8,2129.1,0.0011]
[1772671449901,0.49179735,2129.6,2129.1,0.0011]
[1772671450073,0.49179735,2129.6,2128.6,0.00708761]
[1772671450467,0.49179735,2129.6,2128.5,0.48054467]
[1772671450468,0.49179735,2129.5,2128.5,0.48054467]
[1772671450668,0.49179735,2129.5,2128.4,0.0011]
[1772671451370,0.49179735,2129.5,2128.4,1.17568584]
[1772671451567,0.49179735,2129.3,2128.4,0.0011]
[1772671453685,0.49179735,2129.3,2128.4,0.48164467]
[1772671453686,0.49179735,2129.1,2128.4,0.48164467]
[1772671453898,0.49179735,2129.1,2129.0,0.0011]
[1772671454206,0.49179735,2129.1,2128.8,0.0011]
[1772671455202,1.17414991,2129.2,2128.8,0.0011]
[1772671455701,0.49179735,2129.1,2128.8,0.0011]
[1772671456073,4.69659966,2129.5,2128.8,0.48164467]
[1772671456074,1.66578185,2129.5,2128.8,0.48164467]
[1772671456704,1.17375401,2130.0,2129.0,0.48054467]
[1772671456875,11.74158528,2129.9,2129.0,0.48054467]
[1772671458409,11.74158528,2129.9,2129.2,0.48054467]
[1772671459610,9.39176277,2129.9,2129.2,0.48054467]
[1772671460310,9.39176277,2129.9,2129.4,0.54366776]
[1772671460617,0.001,2130.1,2129.4,0.54366776]
[1772671460780,11.74158528,2130.0,2129.4,0.54366776]
[1772671461607,9.95389944,2130.0,2129.5,0.25714181]
[1772671461802,5.20615413,2130.0,2129.4,0.25486228]
[1772671461979,1.434,2130.3,2129.4,0.25486228]
[1772671462316,7.14425785,2130.2,2129.6,0.25486228]
[1772671462702,2.02484254,2130.8,2129.7,0.25486228]
[1772671463312,7.06531605,2130.7,2129.7,0.25486228]
[1772671463612,7.06531605,2130.9,2129.7,0.25486228]
[1772671464387,7.06531605,2130.9,2129.9,0.38651675]
[1772671465517,8.86423052,2130.9,2129.9,0.38651675]
[1772671465720,0.6256953,2130.8,2129.9,0.38651675]
[1772671466384,7.06631605,2130.7,2130.0,1.17370892]
[1772671466584,1.93810372,2130.6,2130.0,1.55502376]
[1772671467092,2.56379902,2130.6,2129.8,4.69525261]
[1772671467280,0.6256953,2130.4,2129.8,4.69525261]
[1772671467481,0.6256953,2130.4,2129.8,1.17381913]
[1772671469788,1.7991942,2130.4,2129.8,1.17381913]
[1772671470110,0.6256953,2130.4,2129.8,1.17381913]
[1772671471721,5.12721233,2130.5,2129.8,1.53970097]
[1772671471887,1.93810372,2130.4,2129.9,0.36588184]
[1772671472422,1.55792516,2130.4,2129.8,1.17381913]
[1772671472920,1.55792516,2130.4,2129.7,4.69534281]
[1772671473815,1.55792516,2130.4,2129.8,0.0060133]
[1772671474328,5.12721233,2130.3,2129.8,0.0060133]
[1772671475617,6.68513749,2130.2,2129.7,4.69534281]
[1772671475819,7.32708904,2130.2,2129.7,1.17387425]
[1772671477795,6.68513749,2130.1,2129.7,1.17387425]
[1772671477995,6.68513749,2130.4,2129.7,1.17387425]
[1772671478223,1.55792516,2130.4,2129.7,1.17387425]
[1772671478519,6.68513749,2130.3,2129.7,1.17387425]
[1772671478820,1.81630678,2130.7,2129.7,1.17387425]
[1772671478821,6.68513749,2130.6,2129.7,1.17387425]
[1772671479219,0.001,2130.7,2130.0,0.0011]
[1772671479419,0.001,2130.2,2130.1,1.175]
[1772671479740,4.69234471,2131.2,2130.1,1.175]
[1772671479741,0.64195155,2131.2,2130.4,0.18497139]
[1772671480124,4.69156084,2131.5,2130.4,0.18497139]
[1772671480125,0.001,2131.1,2130.4,0.18497139]
[1772671480431,0.6256953,2131.5,2130.4,0.18497139]
[1772671480607,0.001,2131.4,2130.4,0.18497139]
[1772671482094,0.001,2131.4,2130.6,0.6485387]
[1772671482426,0.001,2131.4,2130.7,0.6485387]
[1772671485624,0.001,2131.4,2130.8,1.82180695]
[1772671485929,0.6266953,2131.4,2130.8,1.17326825]
[1772671487830,0.6256953,2131.2,2130.5,4.69370218]
[1772671490237,1.79877892,2131.2,2130.5,4.69370218]
[1772671490629,1.86120751,2131.2,2130.5,4.69370218]
[1772671491834,1.86120751,2131.2,2130.5,5.38221463]
[1772671492024,0.001,2131.0,2130.6,0.68851245]
[1772671492222,0.001,2131.1,2130.8,0.68851245]
[1772671492534,1.86198979,2131.6,2130.8,0.68851245]
[1772671492930,0.68812389,2131.5,2130.8,0.68851245]
[1772671494642,0.001,2131.6,2131.0,0.68851245]
[1772671495016,0.002,2131.6,2131.0,0.68851245]
[1772671495335,0.002,2131.6,2131.0,1.86751245]
[1772671495928,0.002,2131.6,2131.1,0.68851245]
[1772671496936,0.002,2131.6,2131.2,1.17304804]
[1772671497117,0.69012389,2131.6,2131.1,1.17307114]
[1772671499237,0.68812389,2131.5,2130.8,1.86751245]
[1772671499422,0.68812389,2131.5,2130.7,4.69318074]
[1772671499736,0.68912389,2131.4,2130.7,5.38169319]
[1772671500529,0.68912389,2131.4,2130.8,0.68851245]
[1772671501230,0.68812389,2131.3,2130.6,2.35333679]
[1772671501418,0.001,2131.4,2130.7,0.68851245]
[1772671503252,0.68912389,2131.4,2130.8,1.17326825]
[1772671504018,0.001,2131.4,2130.9,0.68851245]
[1772671504333,0.001,2131.4,2130.8,1.17326825]
[1772671504334,0.68912389,2131.4,2130.8,1.17326825]
[1772671505721,0.68812389,2130.8,2129.8,0.0011]
[1772671505962,0.68812389,2130.3,2129.9,2.38594765]
[1772671506118,0.68812389,2130.1,2129.5,0.0011]
[1772671506319,0.68812389,2129.9,2129.5,0.0011]
[1772671506820,0.68812389,2129.9,2129.1,0.0011]
[1772671506821,0.68812389,2129.6,2129.1,0.0011]
[1772671507024,0.68812389,2129.4,2129.1,0.0011]
[1772671507219,1.8622738,2129.2,2129.1,0.0011]
[1772671507453,4.66263298,2129.2,2129.1,0.0011]
[1772671507841,6.93438991,2129.5,2129.1,0.0011]
[1772671507842,1.17407131,2129.4,2129.1,0.0033]
[1772671508351,1.17407131,2129.4,2129.1,0.0011]
[1772671508750,1.17407131,2129.4,2129.1,0.0033]
[1772671508976,1.1739692,2129.6,2129.1,0.0033]
[1772671509345,1.86194302,2129.8,2129.1,0.0033]
[1772671509548,1.17379783,2129.9,2129.1,0.0033]
[1772671510284,1.86192172,2129.9,2129.2,1.171]
[1772671511074,1.17373143,2130.0,2129.3,0.0022]
[1772671511244,0.68812389,2130.2,2129.3,0.0022]
[1772671511445,1.17365381,2130.1,2129.3,1.86480722]
[1772671513953,1.17363417,2130.2,2129.4,0.68851245]
[1772671514871,5.38218787,2130.4,2129.5,0.69071245]
[1772671515377,0.68812389,2130.3,2129.5,0.69071245]
[1772671515586,0.68812389,2130.3,2129.5,0.0022]
[1772671515783,0.68812389,2130.3,2129.6,1.176]
[1772671516283,0.68812389,2130.1,2129.6,1.176]
[1772671516453,0.68812389,2130.1,2129.6,1.1782]
[1772671517798,0.71266763,2130.6,2129.7,0.68851245]
[1772671517978,4.69379796,2130.5,2129.7,0.68851245]
[1772671518292,5.38192185,2130.5,2129.8,0.001]
[1772671518492,0.68812389,2130.4,2129.9,1.177]
[1772671520269,2.22333084,2130.3,2129.8,0.001]
[1772671520470,2.22333084,2130.3,2129.9,1.1802]
[1772671520766,1.04978721,2130.2,2129.9,0.0022]
[1772671520967,1.04978721,2130.2,2129.9,1.1802]
[1772671521982,1.17354363,2130.3,2129.9,1.1802]
[1772671522185,1.17354363,2130.3,2130.0,0.0022]
[1772671522487,1.17348854,2130.4,2130.0,0.0022]
[1772671523586,5.40618861,2130.6,2130.0,0.99505764]
[1772671523587,1.88608907,2130.6,2130.0,0.99505764]
[1772671524087,0.71266763,2130.6,2130.0,0.99505764]
[1772671524584,1.17319508,2131.0,2130.2,0.99285764]
[1772671525354,1.05078721,2131.1,2130.3,0.90263335]
[1772671525558,0.001,2131.1,2130.3,0.90263335]
[1772671525995,1.17410795,2131.1,2130.3,0.90263335]
[1772671526184,1.17410795,2131.1,2130.4,1.179]
[1772671526360,1.17410795,2131.1,2130.4,2.09840176]
[1772671526872,0.001,2131.1,2130.6,0.91465646]
[1772671527765,0.001,2131.1,2130.7,1.179]
[1772671527958,0.001,2131.1,2130.7,2.08892485]
[1772671528157,0.001,2131.1,2130.8,1.179]
[1772671529473,0.001,2131.1,2130.9,1.17321319]